bitfinex/quotes_BTCUSD_20240712
["timestamp","ask_amount","ask_price","bid_price","bid_amount"]
[1720805662207,0.37364329,58351.0,58350.0,0.0116839]
[1720805662608,0.50214124,58351.0,58350.0,0.014]
[1720805662813,0.50214127,58351.0,58350.0,0.0256839]
[1720805663008,0.50214127,58351.0,58350.0,0.1830629]
[1720805663209,0.36744585,58351.0,58350.0,0.5258219]
[1720805663411,0.36934299,58351.0,58350.0,0.8735809]
[1720805663687,0.38944563,58351.0,58350.0,0.8735809]
[1720805663869,0.39564307,58351.0,58350.0,0.5308219]
[1720805664111,0.38944563,58351.0,58350.0,0.5308219]
[1720805664311,0.38826809,58351.0,58350.0,0.8735809]
[1720805664613,0.17023043,58351.0,58350.0,1.2163399]
[1720805664822,0.18456955,58351.0,58350.0,1.2253399]
[1720805665000,0.31117039,58351.0,58350.0,1.2303399]
[1720805665432,0.41398274,58351.0,58350.0,1.2303399]
[1720805665634,0.41398274,58351.0,58350.0,1.2253399]
[1720805665635,0.31117039,58351.0,58350.0,1.2253399]
[1720805665846,0.42018018,58351.0,58350.0,0.8805809]
[1720805666112,0.31736783,58351.0,58350.0,0.8805809]
[1720805666292,0.41398274,58351.0,58350.0,0.8805809]
[1720805666494,0.41398274,58351.0,58350.0,0.8915809]
[1720805666703,0.31736783,58351.0,58350.0,0.8915809]
[1720805667335,0.42022489,58351.0,58350.0,0.8915809]
[1720805667548,0.30302871,58351.0,58350.0,0.8915809]
[1720805667762,0.31740516,58351.0,58350.0,0.5488219]
[1720805668190,0.47341151,58351.0,58350.0,0.5488219]
[1720805669251,0.473244,58351.0,58350.0,0.5488219]
[1720805669433,0.47324897,58351.0,58350.0,0.5488219]
[1720805670915,0.30302871,58351.0,58350.0,0.5488219]
[1720805671092,0.47168721,58351.0,58350.0,0.5488219]
[1720805671535,0.47168803,58351.0,58350.0,0.5488219]
[1720805671755,0.23605946,58351.0,58350.0,0.5488219]
[1720805671956,0.46549031,58351.0,58350.0,0.5488219]
[1720805672549,0.46632031,58351.0,58350.0,0.5488219]
[1720805673924,0.46632031,58351.0,58350.0,0.8915809]
[1720805674339,0.46643216,58351.0,58350.0,0.8915809]
[1720805674807,0.46643431,58351.0,58350.0,0.8915809]
[1720805676059,0.36375982,58351.0,58350.0,0.8915809]
[1720805676402,0.14472423,58351.0,58350.0,0.8915809]
[1720805676606,0.09505928,58351.0,58350.0,0.8915809]
[1720805676817,0.09505928,58351.0,58350.0,1.2343399]
[1720805676818,0.04189125,58351.0,58350.0,1.2343399]
[1720805677021,0.04189125,58351.0,58350.0,1.34814246]
[1720805677248,0.02896043,58351.0,58350.0,1.34814246]
[1720805677460,0.04190889,58351.0,58350.0,1.34814246]
[1720805677645,0.02896043,58351.0,58350.0,1.34814246]
[1720805677902,0.04190726,58351.0,58350.0,1.34814246]
[1720805678108,0.02896043,58351.0,58350.0,1.34814246]
[1720805678314,0.09332097,58351.0,58350.0,1.34814246]
[1720805679512,0.09332097,58351.0,58350.0,1.2343399]
[1720805679513,0.04190635,58351.0,58350.0,1.2343399]
[1720805681069,0.02896043,58351.0,58350.0,1.2343399]
[1720805681272,0.04178781,58351.0,58350.0,1.2343399]
[1720805681890,0.04178781,58351.0,58350.0,1.3030309]
[1720805682711,0.04178781,58351.0,58350.0,1.41683346]
[1720805684361,0.02896043,58351.0,58350.0,1.3030309]
[1720805684566,0.04216571,58351.0,58350.0,1.3030309]
[1720805684774,0.16876656,58351.0,58350.0,1.3030309]
[1720805685440,0.24589845,58351.0,58350.0,1.3030309]
[1720805685623,0.38619845,58351.0,58350.0,1.3030309]
[1720805686031,0.25959761,58351.0,58350.0,1.3030309]
[1720805686465,0.11929761,58351.0,58350.0,1.3030309]
[1720805687204,0.11897803,58351.0,58350.0,1.3030309]
[1720805687400,0.24557887,58351.0,58350.0,1.3030309]
[1720805687640,0.04184614,58351.0,58350.0,1.3030309]
[1720805687843,0.11898402,58351.0,58350.0,1.3030309]
[1720805690933,0.11898402,58351.0,58350.0,1.2343399]
[1720805691130,0.24552564,58351.0,58350.0,1.2343399]
[1720805691337,0.16836935,58351.0,58350.0,1.2343399]
[1720805691561,0.04176851,58351.0,58350.0,1.2343399]
[1720805694907,0.04177421,58351.0,58350.0,1.2343399]
[1720805695608,0.16837505,58351.0,58350.0,1.2343399]
[1720805696698,0.31557249,58351.0,58350.0,0.5488219]
[1720805696900,0.36845994,58351.0,58350.0,0.2060629]
[1720805697065,0.49707955,58351.0,58350.0,0.2060629]
[1720805697438,0.49678685,58351.0,58350.0,0.0346839]
[1720805697634,0.49678685,58351.0,58350.0,0.2060629]
[1720805699299,0.36398857,58351.0,58350.0,0.8915809]
[1720805699501,0.49058941,58351.0,58350.0,0.8915809]
[1720805699911,0.34958941,58351.0,58350.0,0.8915809]
[1720805700114,0.22298857,58351.0,58350.0,1.2343399]
[1720805700327,0.19725823,58351.0,58350.0,1.34814246]
[1720805700544,0.11878552,58351.0,58350.0,1.54674246]
[1720805700753,0.02896043,58351.0,58350.0,1.54674246]
[1720805700967,0.09435857,58351.0,58350.0,1.54674246]
[1720805701173,0.01608065,58351.0,58350.0,2.07034332]
[1720805701385,0.01608065,58351.0,58350.0,2.24057202]
[1720805701592,0.01608065,58351.0,58350.0,2.22888812]
[1720805701793,0.01608065,58351.0,58350.0,2.24062102]
[1720805702000,0.01608065,58351.0,58350.0,2.07039232]
[1720805702210,0.01608065,58351.0,58350.0,1.90989232]
[1720805702413,0.01608065,58351.0,58350.0,1.92039675]
[1720805703008,0.01608065,58351.0,58350.0,1.81749675]
[1720805703211,0.01608065,58351.0,58350.0,1.70369419]
[1720805703341,0.00213,58351.0,58350.0,1.70369419]
[1720805703540,0.00213,58351.0,58350.0,1.36093519]
[1720805703541,0.01650758,58351.0,58350.0,1.36093519]
[1720805705285,0.14310842,58351.0,58350.0,1.36093519]
[1720805705490,0.25253506,58351.0,58350.0,0.90767176]
[1720805706121,0.25258724,58351.0,58350.0,0.90767176]
[1720805706325,0.32972228,58351.0,58350.0,0.90767176]
[1720805706527,0.32972228,58351.0,58350.0,0.89593886]
[1720805706747,0.25251457,58351.0,58350.0,0.90767176]
[1720805706953,0.25325966,58351.0,58350.0,0.90767176]
[1720805707148,0.12046138,58351.0,58350.0,0.90767176]
[1720805707597,0.04331629,58351.0,58350.0,0.96877176]
[1720805707803,0.04331629,58351.0,58350.0,0.90767176]
[1720805708046,0.12046138,58351.0,58350.0,0.90767176]
[1720805708175,0.12046138,58351.0,58350.0,1.25043076]
[1720805708392,0.04331629,58351.0,58350.0,1.25043076]
[1720805708570,0.04331629,58351.0,58350.0,1.36423332]
[1720805708770,0.09475124,58351.0,58350.0,1.36423332]
[1720805709225,0.09475124,58351.0,58350.0,1.25043076]
[1720805709643,0.04331629,58351.0,58350.0,1.36423332]
[1720805710204,0.04373802,58351.0,58350.0,1.36423332]
[1720805712306,0.04373802,58351.0,58350.0,1.46423332]
[1720805712516,0.09517565,58351.0,58350.0,1.46423332]
[1720805712730,0.06834645,58351.0,58350.0,1.46423332]
[1720805712948,0.06834645,58351.0,58350.0,1.80699232]
[1720805713152,0.01690882,58351.0,58350.0,1.97169232]
[1720805713579,0.01669558,58351.0,58350.0,1.97169232]
[1720805714032,0.01669571,58351.0,58350.0,1.97169232]
[1720805716157,0.01725504,58351.0,58350.0,1.97169232]
[1720805716399,0.01725504,58351.0,58350.0,2.04509148]
[1720805716855,0.00213,58351.0,58350.0,2.04509148]
[1720805717066,0.01868661,58351.0,58350.0,2.04509148]
[1720805717507,0.01868661,58351.0,58350.0,3.38532175]
[1720805717508,0.00213,58351.0,58350.0,3.38532175]
[1720805718390,0.00213,58351.0,58350.0,3.40771175]
[1720805718628,0.00080312,58367.0,58366.0,1.65579456]
[1720805718833,0.05970216,58371.0,58369.0,0.11380256]
[1720805718834,0.01556925,58370.0,58369.0,0.11380256]
[1720805719038,0.00828,58371.0,58370.0,0.97040456]
[1720805719241,0.00828,58371.0,58370.0,1.31304556]
[1720805719242,0.02384917,58371.0,58370.0,1.31304556]
[1720805719471,0.02384917,58371.0,58370.0,1.66541847]
[1720805719676,0.02384917,58371.0,58370.0,1.68841847]
[1720805720110,0.02339662,58371.0,58370.0,1.57461591]
[1720805720768,0.02339662,58371.0,58370.0,1.58261591]
[1720805721481,0.02339662,58371.0,58370.0,1.58761591]
[1720805721910,0.02339662,58371.0,58370.0,1.58261591]
[1720805722160,0.02339662,58371.0,58370.0,1.59161591]
[1720805722594,0.02339662,58371.0,58370.0,1.70541847]
[1720805723229,0.00828,58371.0,58370.0,1.70541847]
[1720805724061,0.02327168,58371.0,58370.0,1.64541847]
[1720805725124,0.02387167,58371.0,58370.0,1.64541847]
[1720805725332,0.02387167,58371.0,58370.0,1.70541847]
[1720805726199,0.00887999,58371.0,58370.0,1.70541847]
[1720805726427,0.02385968,58371.0,58370.0,1.70541847]
[1720805726650,0.02380831,58371.0,58370.0,1.71604501]
[1720805728787,0.02380831,58371.0,58370.0,1.60224245]
[1720805729330,0.02380831,58371.0,58370.0,1.71604501]
[1720805729947,0.02391889,58371.0,58370.0,1.71604501]
[1720805730971,0.02391889,58371.0,58370.0,1.60224245]
[1720805733251,0.02353929,58371.0,58370.0,1.60224245]
[1720805733702,0.02356248,58371.0,58370.0,1.60224245]
[1720805734482,0.02356248,58371.0,58370.0,1.71604501]
[1720805736430,0.02383063,58371.0,58370.0,1.71604501]
[1720805736608,0.02383048,58371.0,58370.0,1.71604501]
[1720805737207,0.02383048,58371.0,58370.0,1.78084501]
[1720805738168,0.00887999,58371.0,58370.0,1.78084501]
[1720805738446,0.00887999,58371.0,58370.0,1.88084501]
[1720805739461,0.02365989,58371.0,58370.0,1.88084501]
[1720805740193,0.02355851,58371.0,58370.0,1.88084501]
[1720805743454,0.02355851,58371.0,58370.0,1.95424417]
[1720805743945,0.00887999,58371.0,58370.0,1.95424417]
[1720805744532,0.00887999,58371.0,58370.0,2.55021387]
[1720805744781,0.00887999,58371.0,58370.0,2.65015644]
[1720805744981,0.00887999,58371.0,58370.0,2.68454644]
[1720805745386,0.00887999,58371.0,58370.0,2.67554644]
[1720805745648,0.00887999,58371.0,58370.0,2.66754644]
[1720805745823,0.00887999,58371.0,58370.0,2.68154644]
[1720805746824,0.00887999,58371.0,58370.0,2.69554644]
[1720805747302,0.00828,58374.0,58373.0,2.14414229]
[1720805747456,0.00828,58374.0,58373.0,3.02489322]
[1720805747693,0.00828,58374.0,58373.0,3.37954236]
[1720805748665,0.00828,58374.0,58373.0,3.39354236]
[1720805749103,0.00828,58374.0,58373.0,3.40754236]
[1720805749825,0.00828,58374.0,58373.0,3.75016636]
[1720805750896,0.00828,58378.0,58377.0,0.56794429]
[1720805751099,0.00828,58378.0,58377.0,1.61277299]
[1720805751307,0.00828,58381.0,58380.0,1.11620829]
[1720805751519,0.00829,58391.0,58390.0,0.90838856]
[1720805751745,0.00829,58391.0,58390.0,2.36858749]
[1720805751956,0.00829,58391.0,58390.0,2.40311163]
[1720805752167,0.08703953,58391.0,58390.0,1.67805637]
[1720805752372,0.06879,58391.0,58390.0,1.67805637]
[1720805752593,0.08704619,58391.0,58390.0,1.65505637]
[1720805753333,0.08725345,58391.0,58390.0,1.65505637]
[1720805753817,0.09285498,58391.0,58390.0,1.65505637]
[1720805754053,0.30835326,58391.0,58390.0,1.32453237]
[1720805754278,0.30835326,58391.0,58390.0,1.31253237]
[1720805754766,0.30835326,58391.0,58390.0,1.32553237]
[1720805755039,0.30215582,58391.0,58390.0,1.31253237]
[1720805755275,0.17555498,58391.0,58390.0,1.31253237]
[1720805755517,0.30215582,58391.0,58390.0,1.31253237]
[1720805755756,0.30215582,58391.0,58390.0,1.32653237]
[1720805756241,0.30215582,58391.0,58390.0,1.31253237]
[1720805756242,0.17523952,58391.0,58390.0,1.31253237]
[1720805756507,0.15708999,58391.0,58390.0,1.33753237]
[1720805756760,0.15708999,58391.0,58390.0,1.32553237]
[1720805756997,0.17519394,58391.0,58390.0,0.99331014]
[1720805757983,0.30179478,58391.0,58390.0,0.99331014]
[1720805758237,0.15708999,58391.0,58390.0,0.99331014]
[1720805760533,0.30173929,58391.0,58390.0,0.99331014]
[1720805761223,0.28369083,58391.0,58390.0,0.98131014]
[1720805761738,0.28369083,58391.0,58390.0,0.99531014]
[1720805761963,0.15708999,58391.0,58390.0,1.06395214]
[1720805762642,0.30750274,58391.0,58390.0,0.10764214]
[1720805762874,0.47876578,58391.0,58390.0,0.03900014]
[1720805763113,1.28380178,58391.0,58390.0,0.03900014]
[1720805764146,1.31061697,58391.0,58390.0,0.03900014]
[1720805764399,1.19061697,58391.0,58390.0,0.03900014]
[1720805764626,1.16380178,58391.0,58390.0,0.03900014]
[1720805764853,0.82128378,58391.0,58390.0,0.03900014]
[1720805765518,0.82053554,58391.0,58390.0,0.03900014]
[1720805766878,0.30675854,58391.0,58390.0,0.03900014]
[1720805767104,0.30675854,58391.0,58390.0,0.21026214]
[1720805767320,0.47801754,58391.0,58390.0,0.03900014]
[1720805767668,0.47801754,58391.0,58390.0,0.027]
[1720805767877,0.47801754,58391.0,58390.0,0.03900014]
[1720805768104,0.50483192,58391.0,58390.0,0.03900014]
[1720805768718,0.5049153,58391.0,58390.0,0.03900014]
[1720805769371,0.95555485,58391.0,58390.0,0.03900014]
[1720805769727,0.90430281,58391.0,58390.0,0.03900014]
[1720805770381,0.95555485,58391.0,58390.0,0.03900014]
[1720805770930,0.44177785,58391.0,58390.0,0.03900014]
[1720805771174,0.44177785,58391.0,58390.0,0.21026214]
[1720805771584,1.29807285,58391.0,58390.0,0.03900014]
[1720805771793,1.36682081,58391.0,58390.0,0.03900014]
[1720805772014,1.41808733,58391.0,58390.0,0.027]
[1720805772218,1.36558116,58391.0,58390.0,0.027]
[1720805772421,1.44248056,58391.0,58390.0,0.027]
[1720805772825,1.89003499,58391.0,58390.0,0.027]
[1720805773035,1.76186931,58391.0,58390.0,0.027]
[1720805773239,1.76186931,58391.0,58390.0,0.013]
[1720805773523,0.64665428,58382.0,58381.0,0.00317341]
[1720805773718,0.93903096,58382.0,58381.0,0.00317341]
[1720805773873,0.88775217,58382.0,58381.0,0.01518678]
[1720805774395,0.93903096,58382.0,58381.0,0.000913]
[1720805774611,0.93903096,58382.0,58381.0,0.00317341]
[1720805775028,0.42517496,58382.0,58381.0,0.00717341]
[1720805775230,0.37389617,58382.0,58381.0,0.52103841]
[1720805775438,0.37389617,58382.0,58381.0,0.53079137]
[1720805775876,0.37389617,58382.0,58381.0,0.53579137]
[1720805775877,0.30131266,58382.0,58381.0,0.53579137]
[1720805776085,0.3725738,58382.0,58381.0,0.53579137]
[1720805776300,0.31697921,58382.0,58381.0,0.53179137]
[1720805776516,0.36826175,58382.0,58381.0,0.18421437]
[1720805776711,0.42385686,58382.0,58381.0,0.19147478]
[1720805776926,0.93771286,58382.0,58381.0,0.01818678]
[1720805777150,1.86657503,58382.0,58381.0,0.01518678]
[1720805777366,1.86657503,58382.0,58365.0,0.01604186]
[1720805777367,1.13321528,58369.0,58368.0,0.00226041]
[1720805777579,1.28263729,58369.0,58368.0,0.00226041]
[1720805777788,1.28263729,58369.0,58365.0,0.01604186]
[1720805777789,0.13279828,58366.0,58365.0,0.01604186]
[1720805777995,0.17527921,58366.0,58365.0,0.01604186]
[1720805778203,0.14846483,58366.0,58365.0,0.01604186]
[1720805778632,0.14805692,58366.0,58365.0,0.01604186]
[1720805779892,0.14805692,58366.0,58365.0,0.03004186]
[1720805780095,0.14805692,58366.0,58365.0,0.04404186]
[1720805781413,0.14805692,58366.0,58365.0,0.21537686]
[1720805781841,0.14805692,58366.0,58365.0,0.04404186]
[1720805781842,0.30413028,58366.0,58365.0,0.04404186]
[1720805782054,0.66205735,58366.0,58365.0,0.04404186]
[1720805782736,0.66205735,58366.0,58365.0,0.03004186]
[1720805782737,1.00472235,58366.0,58365.0,0.03004186]
[1720805782965,1.00472235,58366.0,58365.0,0.01604186]
[1720805783169,1.00472235,58366.0,58365.0,0.03004186]
[1720805783170,1.05597243,58366.0,58365.0,0.03004186]
[1720805783381,1.06842235,58366.0,58365.0,0.017]
[1720805783598,0.171347,58361.0,58357.0,0.171358]
[1720805783806,0.12660084,58358.0,58357.0,0.171359]
[1720805784005,0.12660084,58358.0,58357.0,0.614077]
[1720805784006,0.14806035,58358.0,58357.0,0.614077]
[1720805784446,0.14806035,58358.0,58357.0,0.682759]
[1720805784906,0.14806035,58358.0,58357.0,0.69954684]
[1720805785373,0.1462228,58358.0,58357.0,0.69954684]
[1720805785605,0.14622282,58358.0,58357.0,0.69954684]
[1720805786342,0.83986032,58358.0,58357.0,0.03378784]
[1720805786545,1.15081554,58358.0,58357.0,0.03378784]
[1720805786814,1.15081554,58358.0,58357.0,0.01]
[1720805786815,1.27081554,58358.0,58357.0,0.01]
[1720805787023,1.19914009,58358.0,58357.0,0.01]
[1720805787256,1.19914009,58358.0,58357.0,0.021]
[1720805787510,1.19914009,58358.0,58357.0,0.011]
[1720805787747,0.13279828,58353.0,58352.0,0.01604186]
[1720805787984,0.14623554,58353.0,58352.0,0.01604186]
[1720805788207,0.01343726,58353.0,58352.0,0.88970721]
[1720805788422,0.05121268,58364.0,58356.0,0.514084]
[1720805788423,0.12660084,58357.0,58356.0,0.514084]
[1720805788634,0.12660084,58359.0,58358.0,0.514068]
[1720805788846,0.12660084,58359.0,58358.0,0.85678]
[1720805789033,0.13968297,58359.0,58358.0,0.53085374]
[1720805789288,0.14588041,58359.0,58358.0,0.53085374]
[1720805789905,0.14588041,58359.0,58358.0,0.53885374]
[1720805790315,0.14588041,58359.0,58358.0,0.53085374]
[1720805790529,0.14588041,58359.0,58358.0,0.53785374]
[1720805790530,0.13968297,58359.0,58358.0,0.53785374]
[1720805790744,0.14588041,58359.0,58358.0,0.54585374]
[1720805791762,0.14589893,58359.0,58358.0,0.54585374]
[1720805792588,0.14589893,58359.0,58358.0,0.53785374]
[1720805793011,0.14589893,58359.0,58358.0,0.54585374]
[1720805793242,0.80795793,58359.0,58358.0,0.03178574]
[1720805795160,0.92650144,58359.0,58358.0,0.03178574]
[1720805795358,0.80650144,58359.0,58358.0,0.03178574]
[1720805795808,1.61191344,58359.0,58358.0,0.03178574]
[1720805796230,1.61191344,58359.0,58358.0,0.015]
[1720805796853,0.30416828,58353.0,58352.0,0.01604186]
[1720805797060,0.31581244,58353.0,58352.0,0.01604186]
[1720805797269,0.37681244,58353.0,58352.0,0.01604186]
[1720805797496,0.71955344,58353.0,58352.0,0.01604186]
[1720805797677,0.80095344,58353.0,58352.0,0.01604186]
[1720805797881,0.80095344,58353.0,58352.0,0.03284021]
[1720805798092,0.92732268,58353.0,58352.0,0.03284021]
[1720805798502,0.92664804,58353.0,58352.0,0.03276845]
[1720805798909,0.8002788,58353.0,58352.0,0.03276845]
[1720805799119,0.13757036,58353.0,58352.0,0.03276845]
[1720805799324,0.13757036,58353.0,58352.0,0.90163545]
[1720805799325,0.01096952,58353.0,58352.0,0.90163545]
[1720805799528,0.001,58353.0,58352.0,0.39851545]
[1720805799730,0.001,58353.0,58352.0,0.56988845]
[1720805799934,0.12760084,58353.0,58352.0,0.91263545]
[1720805800346,0.01229906,58353.0,58352.0,0.91263545]
[1720805800554,0.01229906,58353.0,58352.0,1.02643801]
[1720805800555,0.001,58353.0,58352.0,1.02643801]
[1720805800759,0.12760084,58353.0,58352.0,0.91263545]
[1720805801168,0.001,58353.0,58352.0,0.91263545]
[1720805801372,0.01196075,58353.0,58352.0,0.91263545]
[1720805801577,0.0115773,58353.0,58352.0,0.91263545]
[1720805802190,0.01155722,58353.0,58352.0,0.91263545]
[1720805802396,0.13815806,58353.0,58352.0,0.91263545]
[1720805803452,0.1443555,58353.0,58352.0,0.56988845]
[1720805803664,0.2053555,58353.0,58352.0,0.05576845]
[1720805803874,0.2053555,58353.0,58352.0,0.22714145]
[1720805804837,0.20509687,58353.0,58352.0,0.05576845]
[1720805805730,0.14409687,58353.0,58352.0,0.22714145]
[1720805805881,0.14409687,58353.0,58352.0,0.57080145]
[1720805806485,0.14409687,58353.0,58352.0,0.22805445]
[1720805807657,0.31546687,58353.0,58352.0,0.05668145]
[1720805809268,0.14409687,58353.0,58352.0,0.05668145]
[1720805809703,0.13789943,58353.0,58352.0,0.22805445]
[1720805811282,0.14409687,58353.0,58352.0,0.05668145]
[1720805811716,0.1440969,58353.0,58352.0,0.05668145]
[1720805812265,0.17092738,58353.0,58352.0,0.05668145]
[1720805812466,0.34229738,58353.0,58352.0,0.05668145]
[1720805814561,0.68503838,58353.0,58352.0,0.05668145]
[1720805815646,0.73482308,58353.0,58352.0,0.05668145]
[1720805816304,1.81670139,58353.0,58352.0,0.05668145]
[1720805816514,1.68270508,58353.0,58352.0,0.04071135]
[1720805816693,1.68270508,58353.0,58352.0,0.023913]
[1720805817302,1.68208853,58353.0,58352.0,0.000913]
[1720805817509,1.85232593,58353.0,58352.0,0.000913]
[1720805817727,2.30006693,58353.0,58352.0,0.000913]
[1720805817933,2.57688968,58353.0,58352.0,0.000913]
[1720805818145,2.60049726,58353.0,58352.0,0.000913]
[1720805818355,2.62610484,58353.0,58352.0,0.000913]
[1720805818557,2.49806693,58353.0,58352.0,0.000913]
[1720805818773,2.29806693,58353.0,58352.0,0.000913]
[1720805819329,2.42610484,58353.0,58352.0,0.000913]
[1720805819532,2.42810484,58353.0,58352.0,0.000913]
[1720805820333,2.30006693,58353.0,58352.0,0.000913]
[1720805821139,2.3007427,58353.0,58352.0,0.000913]
[1720805823469,1.6877643,58353.0,58352.0,0.000913]
[1720805823676,0.22129313,58353.0,58352.0,0.515033]
[1720805823891,0.01568505,58353.0,58352.0,1.266827]
[1720805824122,0.01568505,58353.0,58352.0,1.39922038]
[1720805824123,0.01568198,58353.0,58352.0,1.39922038]
[1720805824600,0.01568664,58353.0,58352.0,1.39922038]
[1720805825202,0.01568664,58353.0,58352.0,1.77632738]
[1720805825408,0.005,58353.0,58352.0,1.77632738]
[1720805825618,0.003,58353.0,58352.0,1.77632738]
[1720805825821,0.0013,58358.0,58357.0,0.856795]
[1720805826054,0.14506813,58358.0,58357.0,0.856795]
[1720805826261,0.14506813,58358.0,58357.0,0.01857856]
[1720805826697,0.14506813,58358.0,58357.0,0.171359]
[1720805826910,0.14506813,58358.0,58357.0,0.18993756]
[1720805827113,0.14477935,58358.0,58357.0,0.20193756]
[1720805827321,0.14477933,58358.0,58357.0,0.20193756]
[1720805827758,0.14477933,58358.0,58357.0,0.22293756]
[1720805828586,0.14477933,58358.0,58357.0,0.02957856]
[1720805828833,1.07972111,58358.0,58357.0,0.02957856]
[1720805829008,1.07972111,58358.0,58357.0,0.01857856]
[1720805829165,0.13279828,58353.0,58352.0,0.172285]
[1720805829366,0.14347933,58353.0,58352.0,0.172285]
[1720805829627,0.14347933,58353.0,58352.0,0.19087582]
[1720805829814,0.17030947,58353.0,58352.0,0.172285]
[1720805830141,0.17030947,58353.0,58352.0,1.200526]
[1720805830142,0.01068105,58353.0,58352.0,1.200526]
[1720805830274,0.05134571,58356.0,58355.0,0.11380256]
[1720805830476,0.03750991,58356.0,58355.0,1.31484679]
[1720805830682,0.0013,58358.0,58357.0,0.97059756]
[1720805830934,0.0013,58358.0,58357.0,1.33189412]
[1720805831152,0.01198032,58358.0,58357.0,1.40789412]
[1720805831356,0.01198032,58358.0,58357.0,1.29409156]
[1720805831799,0.01198032,58358.0,58357.0,0.95137356]
[1720805831800,0.13858116,58358.0,58357.0,0.95137356]
[1720805832038,0.1447786,58358.0,58357.0,0.18993756]
[1720805832271,0.1447786,58358.0,58357.0,0.01857856]
[1720805832272,0.34296308,58358.0,58357.0,0.01857856]
[1720805832507,0.34296308,58358.0,58355.0,0.171363]
[1720805832508,0.41997839,58358.0,58355.0,0.171364]
[1720805832741,0.13279828,58355.0,58354.0,0.514101]
[1720805832956,0.13279828,58355.0,58352.0,0.000913]
[1720805832957,0.13279828,58353.0,58352.0,0.000913]
[1720805833185,0.17030933,58353.0,58352.0,0.000913]
[1720805833642,0.17030933,58353.0,58352.0,0.172286]
[1720805833854,0.17031122,58353.0,58352.0,0.172286]
[1720805834303,0.15962901,58353.0,58352.0,0.172286]
[1720805834530,0.24734264,58353.0,58352.0,0.172286]
[1720805834963,0.24734264,58353.0,58352.0,0.000913]
[1720805835189,0.39009702,58353.0,58352.0,0.014913]
[1720805835408,0.73283802,58353.0,58352.0,0.014913]
[1720805835631,0.51848255,58353.0,58352.0,0.014913]
[1720805836090,0.51848255,58353.0,58352.0,0.000913]
[1720805836564,0.99362748,58353.0,58352.0,0.000913]
[1720805836763,1.05672748,58353.0,58352.0,0.000913]
[1720805836989,1.51937611,58353.0,58352.0,0.014913]
[1720805837197,1.73372012,58353.0,58352.0,0.014913]
[1720805837416,1.73372012,58353.0,58352.0,0.024913]
[1720805837417,1.81182012,58353.0,58352.0,0.024913]
[1720805837644,1.81182012,58353.0,58352.0,0.010913]
[1720805837844,1.81182012,58353.0,58352.0,0.021913]
[1720805838093,1.41922646,58353.0,58352.0,0.021913]
[1720805838265,1.07548546,58353.0,58352.0,0.011913]
[1720805838468,1.07648546,58353.0,58352.0,0.011913]
[1720805838669,1.41922646,58353.0,58352.0,0.011913]
[1720805838845,1.58946386,58353.0,58352.0,0.011913]
[1720805839290,1.70946386,58353.0,58352.0,0.011913]
[1720805839521,1.58946386,58353.0,58352.0,0.011913]
[1720805839942,1.58946386,58353.0,58352.0,0.000913]
[1720805840495,1.58876198,58353.0,58352.0,0.001913]
[1720805841560,1.70876198,58353.0,58352.0,0.001913]
[1720805842175,1.86284311,58353.0,58352.0,0.001913]
[1720805842373,1.94034311,58353.0,58352.0,0.001913]
[1720805843835,1.78501287,58353.0,58352.0,0.001913]
[1720805844011,1.93908375,58353.0,58352.0,0.001913]
[1720805844210,1.93908417,58353.0,58352.0,0.001913]
[1720805844433,1.81908417,58353.0,58352.0,0.001913]
[1720805844590,1.32227266,58353.0,58352.0,0.001913]
[1720805844769,1.44227266,58353.0,58352.0,0.001913]
[1720805844972,1.78501366,58353.0,58352.0,0.001913]
[1720805846475,1.72795941,58353.0,58352.0,0.001913]
[1720805846729,1.78489751,58353.0,58352.0,0.001913]
[1720805846937,1.78495617,58353.0,58352.0,0.001913]
[1720805850054,1.84665617,58353.0,58352.0,0.001913]
[1720805850258,1.84653305,58353.0,58352.0,0.001913]
[1720805850867,2.48927405,58353.0,58352.0,0.001913]
[1720805851248,2.6625741,58353.0,58352.0,0.001913]
[1720805851444,2.48927405,58353.0,58352.0,0.001913]
[1720805851742,2.66258282,58353.0,58352.0,0.001913]
[1720805851920,2.66158282,58353.0,58352.0,0.000913]
[1720805852134,2.46858282,58353.0,58352.0,0.001913]
[1720805852343,2.29527405,58353.0,58352.0,0.001913]
[1720805853422,2.49527405,58353.0,58352.0,0.001913]
[1720805853617,2.29552484,58353.0,58352.0,0.001913]
[1720805853938,2.30020743,58353.0,58352.0,0.001913]
[1720805854137,2.50020743,58353.0,58352.0,0.001913]
[1720805854352,2.68362461,58353.0,58352.0,0.001913]
[1720805854771,2.48362461,58353.0,58352.0,0.001913]
[1720805854991,2.31034853,58353.0,58352.0,0.001913]
[1720805856457,2.30980773,58353.0,58352.0,0.001913]
[1720805856694,1.96706673,58353.0,58352.0,0.001913]
[1720805856953,1.96701908,58353.0,58352.0,0.001913]
[1720805857929,2.30976008,58353.0,58352.0,0.001913]
[1720805858687,2.30969809,58353.0,58352.0,0.001913]
[1720805860391,2.50969809,58353.0,58352.0,0.001913]
[1720805861018,2.30969809,58353.0,58352.0,0.001913]
[1720805861237,2.50969809,58353.0,58352.0,0.001913]
[1720805861658,1.86695709,58353.0,58352.0,0.001913]
[1720805862271,2.30969809,58353.0,58352.0,0.001913]
[1720805862478,1.86695709,58353.0,58352.0,0.001913]
[1720805863751,1.96704268,58353.0,58352.0,0.001913]
[1720805863980,2.30978368,58353.0,58352.0,0.001913]
[1720805864191,2.30978381,58353.0,58352.0,0.001913]
[1720805864346,1.96704281,58353.0,58352.0,0.001913]
[1720805865736,2.30978381,58353.0,58352.0,0.001913]
[1720805866377,1.96704281,58353.0,58352.0,0.001913]
[1720805866791,1.96723223,58353.0,58352.0,0.001913]
[1720805869696,2.16723223,58353.0,58352.0,0.001913]
[1720805869903,1.96723223,58353.0,58352.0,0.001913]
[1720805870328,1.91080051,58353.0,58352.0,0.001913]
[1720805870539,2.16702637,58353.0,58352.0,0.001913]
[1720805870734,2.50976737,58353.0,58352.0,0.001913]
[1720805871182,2.68296682,58353.0,58352.0,0.001913]
[1720805871588,1.10982828,58341.0,58340.0,0.000913]
[1720805871786,1.43908487,58341.0,58340.0,0.000913]
[1720805871994,1.56739845,58341.0,58340.0,0.000913]
[1720805872536,1.91021045,58341.0,58340.0,0.000913]
[1720805872751,1.78189687,58341.0,58340.0,0.000913]
[1720805872960,1.95213427,58341.0,58340.0,0.000913]
[1720805873178,1.95213427,58341.0,58340.0,0.009913]
[1720805873179,2.73514627,58341.0,58340.0,0.009913]
[1720805874047,2.73414627,58341.0,58340.0,0.000913]
[1720805874258,2.7413359,58341.0,58340.0,0.001913]
[1720805874472,2.7423359,58341.0,58340.0,0.011913]
[1720805875112,2.7413359,58341.0,58340.0,0.001913]
[1720805875377,2.7513359,58341.0,58340.0,0.002913]
[1720805875579,2.7443359,58341.0,58340.0,0.001913]
[1720805875780,2.7343359,58341.0,58340.0,0.000913]